[Event "*** Titled Tuesday Blitz"]
[Site "Chess.com"]
[Date "2018.12.04"]
[Round "6"]
[White "WPWPWP-2015"]
[Black "WinnerOleg"]
[Result "0-1"]
[WhiteElo "2273"]
[BlackElo "2348"]
[TimeControl "180+2"]
[EndTime "14:23:48 PST"]
[Termination "WinnerOleg won by checkmate"]

1. e4 {[%clk 0:03:01.9]} 1... c5 {[%clk 0:02:59.9]} 2. Nf3 {[%clk 0:03:01.2]}
2... Nc6 {[%clk 0:03:00.9]} 3. Bb5 {[%clk 0:03:00.6]} 3... g6 {[%clk 0:03:00.7]}
4. O-O {[%clk 0:03:00.8]} 4... Bg7 {[%clk 0:03:00.8]} 5. c3 {[%clk 0:03:02.2]}
5... Nf6 {[%clk 0:02:54.1]} 6. Re1 {[%clk 0:03:02.7]} 6... O-O {[%clk
0:02:50.5]} 7. a4 {[%clk 0:02:58.9]} 7... d6 {[%clk 0:02:49.6]} 8. h3 {[%clk
0:02:59.1]} 8... Bd7 {[%clk 0:02:39.6]} 9. d4 {[%clk 0:02:57.8]} 9... cxd4
{[%clk 0:02:36.3]} 10. cxd4 {[%clk 0:02:58.3]} 10... e5 {[%clk 0:02:29.5]} 11.
dxe5 {[%clk 0:02:52.7]} 11... Nxe5 {[%clk 0:02:28.4]} 12. Nc3 {[%clk 0:02:52.1]}
12... Be6 {[%clk 0:02:19.3]} 13. Nd4 {[%clk 0:02:48.2]} 13... Bd7 {[%clk
0:01:59.6]} 14. f4 {[%clk 0:02:44.7]} 14... Nc6 {[%clk 0:01:59]} 15. Nf3 {[%clk
0:02:43.9]} 15... a6 {[%clk 0:01:50.8]} 16. Bf1 {[%clk 0:02:40.2]} 16... Qc7
{[%clk 0:01:38.6]} 17. Be3 {[%clk 0:02:22.6]} 17... Rfe8 {[%clk 0:01:38.7]} 18.
Bf2 {[%clk 0:02:23.6]} 18... Nh5 {[%clk 0:01:38.1]} 19. g3 {[%clk 0:02:23.9]}
19... Be6 {[%clk 0:01:33.4]} 20. Rc1 {[%clk 0:02:22.4]} 20... Qd7 {[%clk
0:01:17.1]} 21. Kh2 {[%clk 0:02:21.9]} 21... Rac8 {[%clk 0:01:10.1]} 22. Ng5
{[%clk 0:02:04.8]} 22... Nf6 {[%clk 0:00:47.7]} 23. Nxe6 {[%clk 0:02:02.3]}
23... Rxe6 {[%clk 0:00:36.6]} 24. Bg2 {[%clk 0:01:51.3]} 24... Ree8 {[%clk
0:00:33.6]} 25. Bb6 {[%clk 0:01:33.7]} 25... h5 {[%clk 0:00:33.4]} 26. a5 {[%clk
0:01:14.7]} 26... h4 {[%clk 0:00:31.3]} 27. g4 {[%clk 0:01:14.9]} 27... g5
{[%clk 0:00:29.6]} 28. e5 {[%clk 0:00:46.6]} 28... dxe5 {[%clk 0:00:26.5]} 29.
fxg5 {[%clk 0:00:47.6]} 29... Qxd1 {[%clk 0:00:26.1]} 30. Rcxd1 {[%clk
0:00:48.6]} 30... Nh7 {[%clk 0:00:26.3]} 31. Ne4 {[%clk 0:00:49.6]} 31... Re6
{[%clk 0:00:18.1]} 32. Rd7 {[%clk 0:00:45.5]} 32... Nd4 {[%clk 0:00:17.9]} 33.
Rf1 {[%clk 0:00:36.1]} 33... Rg6 {[%clk 0:00:09.4]} 34. Nc5 {[%clk 0:00:19.6]}
34... Nxg5 {[%clk 0:00:08.5]} 35. Rxb7 {[%clk 0:00:17.8]} 35... e4 {[%clk
0:00:09.3]} 36. Nxe4 {[%clk 0:00:16.8]} 36... Be5+ {[%clk 0:00:10.4]} 37. Kh1
{[%clk 0:00:17.1]} 37... Ne2 {[%clk 0:00:08.8]} 38. Bf2 {[%clk 0:00:15.4]} 38...
Rc2 {[%clk 0:00:04.8]} 39. Bxh4 {[%clk 0:00:15.1]} 39... Nxh3 {[%clk 0:00:03]}
40. Nf2 {[%clk 0:00:07.3]} 40... Rh6 {[%clk 0:00:02.8]} 41. Nxh3 {[%clk
0:00:07.5]} 41... Rxh4 {[%clk 0:00:04.3]} 42. Rbxf7 {[%clk 0:00:08.1]} 42...
Ng3+ {[%clk 0:00:05.5]} 43. Kg1 {[%clk 0:00:09]} 43... Nxf1 {[%clk 0:00:07.4]}
44. Rxf1 {[%clk 0:00:08.8]} 44... Bd4+ {[%clk 0:00:08.4]} 45. Kh1 {[%clk
0:00:09.8]} 45... Rxb2 {[%clk 0:00:09.7]} 46. Rd1 {[%clk 0:00:10]} 46... Bc3
{[%clk 0:00:09.7]} 47. Bd5+ {[%clk 0:00:10.5]} 47... Kg7 {[%clk 0:00:10.6]} 48.
Bg2 {[%clk 0:00:11.4]} 48... Bxa5 {[%clk 0:00:10.9]} 49. Rd4 {[%clk 0:00:10.2]}
49... Rb1+ {[%clk 0:00:10]} 50. Bf1 {[%clk 0:00:11]} 50... Rxf1+ {[%clk
0:00:10.3]} 51. Kg2 {[%clk 0:00:12.3]} 51... Ra1 {[%clk 0:00:09.8]} 52. Kg3
{[%clk 0:00:13.6]} 52... Rh8 {[%clk 0:00:09.5]} 53. Ng5 {[%clk 0:00:14]} 53...
Bc7+ {[%clk 0:00:09.7]} 54. Kg2 {[%clk 0:00:14]} 54... Ra2+ {[%clk 0:00:10.8]}
55. Kf3 {[%clk 0:00:14.8]} 55... Ra3+ {[%clk 0:00:11.6]} 56. Ke4 {[%clk
0:00:12.7]} 56... Re8+ {[%clk 0:00:12.2]} 57. Kd5 {[%clk 0:00:09.5]} 57... Rd8+
{[%clk 0:00:12.8]} 58. Kc6 {[%clk 0:00:07.7]} 58... Rc3+ {[%clk 0:00:13.3]} 59.
Kb7 {[%clk 0:00:05.1]} 59... Rxd4 {[%clk 0:00:14.4]} 60. Ne6+ {[%clk 0:00:06]}
60... Kf6 {[%clk 0:00:15]} 61. Nxd4 {[%clk 0:00:07.3]} 61... Be5 {[%clk
0:00:15.4]} 62. Nc6 {[%clk 0:00:07.5]} 62... Bf4 {[%clk 0:00:12.9]} 63. Nb4
{[%clk 0:00:07.2]} 63... Rb3 {[%clk 0:00:13.8]} 64. Kxa6 {[%clk 0:00:06.1]}
64... Rxb4 {[%clk 0:00:15]} 65. Ka5 {[%clk 0:00:07.4]} 65... Rb1 {[%clk
0:00:16]} 66. g5+ {[%clk 0:00:08.6]} 66... Kxg5 {[%clk 0:00:17.3]} 67. Ka4
{[%clk 0:00:10]} 67... Kf5 {[%clk 0:00:18.7]} 68. Ka5 {[%clk 0:00:10.6]} 68...
Ke5 {[%clk 0:00:19.8]} 69. Ka6 {[%clk 0:00:12.2]} 69... Kd6 {[%clk 0:00:21.1]}
70. Ka7 {[%clk 0:00:13.9]} 70... Rb2 {[%clk 0:00:20.1]} 71. Ka6 {[%clk
0:00:15.3]} 71... Kc6 {[%clk 0:00:19.3]} 72. Ka5 {[%clk 0:00:16.8]} 72... Bd6
{[%clk 0:00:18.5]} 73. Ka4 {[%clk 0:00:18.4]} 73... Bc5 {[%clk 0:00:18.9]} 74.
Ka5 {[%clk 0:00:19.6]} 74... Ra2# {[%clk 0:00:20.3]} 0-1

[Event "*** Titled Tuesday Blitz"]
[Site "Chess.com"]
[Date "2018.12.04"]
[Round "6"]
[White "pedroholly22"]
[Black "aquaticpineapples"]
[Result "1-0"]
[WhiteElo "2213"]
[BlackElo "2046"]
[TimeControl "180+2"]
[EndTime "14:23:58 PST"]
[Termination "pedroholly22 won by resignation"]

1. e4 {[%clk 0:03:01.9]} 1... d5 {[%clk 0:02:58.6]} 2. exd5 {[%clk 0:02:59.1]}
2... Qxd5 {[%clk 0:03:00.5]} 3. Nc3 {[%clk 0:03:00.4]} 3... Qa5 {[%clk
0:03:01.3]} 4. Nf3 {[%clk 0:03:01]} 4... Nf6 {[%clk 0:03:01.9]} 5. d4 {[%clk
0:03:01.5]} 5... Nc6 {[%clk 0:03:02.8]} 6. d5 {[%clk 0:02:49]} 6... Nb4 {[%clk
0:03:02.9]} 7. Bc4 {[%clk 0:02:49.3]} 7... Bf5 {[%clk 0:02:59.3]} 8. Nd4 {[%clk
0:02:42.5]} 8... Nbxd5 {[%clk 0:02:19.3]} 9. Bd2 {[%clk 0:02:32.1]} 9... Nxc3
{[%clk 0:02:18.9]} 10. Bxc3 {[%clk 0:02:31.7]} 10... Qe5+ {[%clk 0:02:14.3]} 11.
Ne2 {[%clk 0:02:31.1]} 11... Qd6 {[%clk 0:02:10.5]} 12. O-O {[%clk 0:02:29.4]}
12... O-O-O {[%clk 0:02:07.6]} 13. Qc1 {[%clk 0:02:27]} 13... e5 {[%clk
0:02:02.2]} 14. Qe3 {[%clk 0:02:25.2]} 14... Qc5 {[%clk 0:01:45.9]} 15. Qxe5
{[%clk 0:02:02.9]} 15... Bxc2 {[%clk 0:01:29.8]} 16. Bxf7 {[%clk 0:01:57.1]}
16... Bd3 {[%clk 0:01:06.4]} 17. Be6+ {[%clk 0:01:49.4]} 17... Kb8 {[%clk
0:01:06.3]} 18. Rfd1 {[%clk 0:01:47.5]} 18... Bd6 {[%clk 0:00:57.7]} 19. Qxc5
{[%clk 0:01:26.6]} 19... Bxc5 {[%clk 0:00:59.6]} 20. Nf4 {[%clk 0:01:25.5]}
20... Be4 {[%clk 0:00:52.4]} 21. Bxf6 {[%clk 0:01:20.1]} 21... gxf6 {[%clk
0:00:52.3]} 22. Bd5 {[%clk 0:01:19.1]} 22... Bxd5 {[%clk 0:00:38.9]} 23. Nxd5
{[%clk 0:01:18.5]} 23... f5 {[%clk 0:00:26.9]} 24. g3 {[%clk 0:01:18.4]} 24...
c6 {[%clk 0:00:21.2]} 25. Nf4 {[%clk 0:01:17.8]} 25... Rhe8 {[%clk 0:00:21]} 26.
Kg2 {[%clk 0:01:02.2]} 26... Bd6 {[%clk 0:00:19.2]} 27. Kf3 {[%clk 0:00:55.9]}
27... Be5 {[%clk 0:00:19.6]} 28. Re1 {[%clk 0:00:29.8]} 28... Bxb2 {[%clk
0:00:18.5]} 29. Rxe8 {[%clk 0:00:31.2]} 29... Rxe8 {[%clk 0:00:19.8]} 30. Rd1
{[%clk 0:00:32.5]} 30... Kc7 {[%clk 0:00:19.1]} 31. Ng2 {[%clk 0:00:31.2]} 31...
Be5 {[%clk 0:00:18]} 32. Ne3 {[%clk 0:00:31.9]} 32... Rf8 {[%clk 0:00:17]} 33.
Nc4 {[%clk 0:00:32.6]} 33... Bc3 {[%clk 0:00:17]} 34. Rc1 {[%clk 0:00:30]} 34...
Bd4 {[%clk 0:00:17.4]} 35. Rd1 {[%clk 0:00:30.8]} 35... Bc5 {[%clk 0:00:18.1]}
36. Re1 {[%clk 0:00:30.2]} 36... b5 {[%clk 0:00:18.1]} 37. Ne5 {[%clk 0:00:31]}
37... a5 {[%clk 0:00:17]} 38. Rc1 {[%clk 0:00:30.9]} 38... Kd6 {[%clk
0:00:16.7]} 39. Nd3 {[%clk 0:00:24]} 39... Bd4 {[%clk 0:00:15.5]} 40. Nf4 {[%clk
0:00:22.9]} 40... c5 {[%clk 0:00:15.5]} 41. Re1 {[%clk 0:00:22.9]} 41... Rf6
{[%clk 0:00:14.8]} 42. Nh5 {[%clk 0:00:22.9]} 42... Re6 {[%clk 0:00:15.5]} 43.
Rd1 {[%clk 0:00:24.4]} 43... b4 {[%clk 0:00:15.4]} 44. Ng7 {[%clk 0:00:24.6]}
44... Rf6 {[%clk 0:00:14.4]} 45. Ne8+ {[%clk 0:00:25.6]} 45... Kc6 {[%clk
0:00:14.9]} 46. Nxf6 {[%clk 0:00:27.5]} 46... Bxf6 {[%clk 0:00:16.3]} 47. Kf4
{[%clk 0:00:28.6]} 47... a4 {[%clk 0:00:16.3]} 48. Kxf5 {[%clk 0:00:29.2]} 48...
Bd4 {[%clk 0:00:15.3]} 49. f4 {[%clk 0:00:27.1]} 49... b3 {[%clk 0:00:15.3]} 50.
axb3 {[%clk 0:00:26.9]} 50... a3 {[%clk 0:00:13.5]} 51. Rd2 {[%clk 0:00:25.1]}
51... Kb5 {[%clk 0:00:11.3]} 52. Ke6 {[%clk 0:00:21.6]} 52... Bc3 {[%clk
0:00:09.2]} 53. Rc2 {[%clk 0:00:21.5]} 53... Kb4 {[%clk 0:00:09.4]} 54. Kd5
{[%clk 0:00:22.1]} 54... Kxb3 {[%clk 0:00:10.7]} 55. Re2 {[%clk 0:00:23.2]}
55... c4 {[%clk 0:00:09.8]} 56. f5 {[%clk 0:00:23.7]} 56... a2 {[%clk
0:00:10.6]} 57. Rxa2 {[%clk 0:00:24.2]} 57... Kxa2 {[%clk 0:00:11.3]} 58. Kxc4
{[%clk 0:00:25.7]} 58... Bf6 {[%clk 0:00:11.9]} 59. Kd5 {[%clk 0:00:27]} 59...
Kb3 {[%clk 0:00:12.6]} 60. Ke6 {[%clk 0:00:28.5]} 60... Bb2 {[%clk 0:00:12.3]}
61. Kf7 {[%clk 0:00:27.7]} 61... Kc4 {[%clk 0:00:12.3]} 62. Kg8 {[%clk
0:00:28.2]} 62... h5 {[%clk 0:00:12.8]} 63. Kh7 {[%clk 0:00:27.5]} 63... Kd5
{[%clk 0:00:11.8]} 64. Kg6 {[%clk 0:00:28.3]} 64... h4 {[%clk 0:00:10.9]} 65. g4
{[%clk 0:00:24.8]} 65... Ke4 {[%clk 0:00:10.7]} 66. g5 {[%clk 0:00:24.9]} 66...
h3 {[%clk 0:00:09.2]} 67. f6 {[%clk 0:00:25.6]} 67... Kf3 {[%clk 0:00:08.2]} 68.
f7 {[%clk 0:00:24.7]} 68... Ba3 {[%clk 0:00:09.3]} 69. Kh7 {[%clk 0:00:24.5]}
69... Bf8 {[%clk 0:00:04.4]} 70. g6 {[%clk 0:00:25.5]} 70... Kg2 {[%clk
0:00:05.7]} 71. g7 {[%clk 0:00:26.8]} 71... Bxg7 {[%clk 0:00:07.1]} 72. Kxg7
{[%clk 0:00:28.1]} 72... Kxh2 {[%clk 0:00:08.3]} 73. f8=Q {[%clk 0:00:28.8]}
73... Kg1 {[%clk 0:00:09.6]} 74. Qc5+ {[%clk 0:00:29.1]} 74... Kg2 {[%clk
0:00:10.4]} 75. Qg5+ {[%clk 0:00:29.9]} 75... Kf2 {[%clk 0:00:10.9]} 76. Qf5+
{[%clk 0:00:30.7]} 76... Kg2 {[%clk 0:00:12]} 77. Qg4+ {[%clk 0:00:31.5]} 77...
Kh2 {[%clk 0:00:12.6]} 78. Kh6 {[%clk 0:00:31.7]} 1-0

[Event "*** Titled Tuesday Blitz"]
[Site "Chess.com"]
[Date "2018.12.04"]
[Round "6"]
[White "NikolaGry"]
[Black "Marcus_Harvey"]
[Result "1-0"]
[WhiteElo "2647"]
[BlackElo "2669"]
[TimeControl "180+2"]
[EndTime "14:23:59 PST"]
[Termination "NikolaGry won by resignation"]

1. d4 {[%clk 0:03:01.3]} 1... e6 {[%clk 0:02:48.6]} 2. Nf3 {[%clk 0:03:01.5]}
2... Nf6 {[%clk 0:02:49.5]} 3. c3 {[%clk 0:02:57.3]} 3... Be7 {[%clk 0:02:47.6]}
4. Bf4 {[%clk 0:02:50.8]} 4... Nh5 {[%clk 0:02:48.6]} 5. Bg3 {[%clk 0:02:50.2]}
5... f5 {[%clk 0:02:47.8]} 6. e3 {[%clk 0:02:50.5]} 6... O-O {[%clk 0:02:47.7]}
7. Ne5 {[%clk 0:02:43.7]} 7... Nf6 {[%clk 0:02:33.3]} 8. Nd2 {[%clk 0:02:43.7]}
8... d6 {[%clk 0:02:32.7]} 9. Nd3 {[%clk 0:02:43.7]} 9... Nc6 {[%clk 0:02:24.1]}
10. Be2 {[%clk 0:02:42.3]} 10... Bd7 {[%clk 0:01:51]} 11. O-O {[%clk 0:02:42.2]}
11... Be8 {[%clk 0:01:52.1]} 12. b4 {[%clk 0:02:31.5]} 12... a6 {[%clk
0:01:50.9]} 13. a4 {[%clk 0:02:31.8]} 13... Bf7 {[%clk 0:01:51.9]} 14. b5 {[%clk
0:02:09.9]} 14... axb5 {[%clk 0:01:52.2]} 15. axb5 {[%clk 0:02:10.7]} 15... Na5
{[%clk 0:01:52.6]} 16. c4 {[%clk 0:02:08.8]} 16... Ne4 {[%clk 0:01:39.8]} 17.
Nxe4 {[%clk 0:02:02]} 17... fxe4 {[%clk 0:01:41]} 18. Nb4 {[%clk 0:01:48.2]}
18... Bh4 {[%clk 0:01:26.2]} 19. Ra3 {[%clk 0:01:34.5]} 19... Bxg3 {[%clk
0:01:24.5]} 20. hxg3 {[%clk 0:01:34.3]} 20... b6 {[%clk 0:01:08.1]} 21. Qa1
{[%clk 0:01:08.4]} 21... Nb3 {[%clk 0:00:44.3]} 22. Rxa8 {[%clk 0:00:46]} 22...
Qxa8 {[%clk 0:00:46.2]} 23. Qxa8 {[%clk 0:00:45.9]} 23... Rxa8 {[%clk
0:00:45.9]} 24. Na6 {[%clk 0:00:40.7]} 24... Ra7 {[%clk 0:00:46.2]} 25. Rb1
{[%clk 0:00:39.5]} 25... Na5 {[%clk 0:00:46.5]} 26. Ra1 {[%clk 0:00:38.1]} 26...
Be8 {[%clk 0:00:39.2]} 27. Nb4 {[%clk 0:00:38]} 27... Kf7 {[%clk 0:00:37.8]} 28.
g4 {[%clk 0:00:39]} 28... g5 {[%clk 0:00:37.9]} 29. f3 {[%clk 0:00:38.1]} 29...
exf3 {[%clk 0:00:29.1]} 30. gxf3 {[%clk 0:00:39]} 30... Nc6 {[%clk 0:00:28.3]}
31. Rxa7 {[%clk 0:00:38.4]} 31... Nxa7 {[%clk 0:00:29.6]} 32. Kf2 {[%clk
0:00:37.3]} 32... c5 {[%clk 0:00:26.7]} 33. bxc6 {[%clk 0:00:34.3]} 33... Nxc6
{[%clk 0:00:26.9]} 34. Nc2 {[%clk 0:00:25.7]} 34... e5 {[%clk 0:00:27.6]} 35.
Bd3 {[%clk 0:00:24]} 35... h6 {[%clk 0:00:28.2]} 36. Be4 {[%clk 0:00:25]} 36...
Ke7 {[%clk 0:00:29.3]} 37. Bd5 {[%clk 0:00:23.2]} 37... Bd7 {[%clk 0:00:26.5]}
38. Ke2 {[%clk 0:00:23.9]} 38... exd4 {[%clk 0:00:25.5]} 39. Bxc6 {[%clk
0:00:23.3]} 39... Bxc6 {[%clk 0:00:26.2]} 40. Nxd4 {[%clk 0:00:24.5]} 40... Bd7
{[%clk 0:00:27.4]} 41. e4 {[%clk 0:00:24.7]} 41... Kf6 {[%clk 0:00:28.2]} 42.
Ke3 {[%clk 0:00:24.9]} 42... Ke5 {[%clk 0:00:16.5]} 43. Nf5 {[%clk 0:00:25.9]}
43... Be6 {[%clk 0:00:11.5]} 44. Nxh6 {[%clk 0:00:26.6]} 44... Bxc4 {[%clk
0:00:11.7]} 45. Nf5 {[%clk 0:00:26.2]} 45... b5 {[%clk 0:00:11.7]} 46. Nd4
{[%clk 0:00:24.9]} 46... Kf6 {[%clk 0:00:11.1]} 47. Nc6 {[%clk 0:00:25.2]} 47...
Be6 {[%clk 0:00:10.8]} 48. Nb4 {[%clk 0:00:25.1]} 48... Bd7 {[%clk 0:00:10.7]}
49. Kd4 {[%clk 0:00:26.1]} 49... Be6 {[%clk 0:00:09.9]} 50. Nd3 {[%clk
0:00:24.7]} 50... Bc4 {[%clk 0:00:10.9]} 51. Nb4 {[%clk 0:00:22.9]} 51... Ke6
{[%clk 0:00:12]} 52. Nc2 {[%clk 0:00:21.9]} 52... Be2 {[%clk 0:00:12.5]} 53. Ke3
{[%clk 0:00:22.4]} 53... Bc4 {[%clk 0:00:13.6]} 54. Nd4+ {[%clk 0:00:23.3]}
54... Ke5 {[%clk 0:00:13.7]} 55. Nc6+ {[%clk 0:00:23.8]} 55... Ke6 {[%clk
0:00:14.9]} 56. Nd4+ {[%clk 0:00:24.1]} 56... Kf6 {[%clk 0:00:15.5]} 57. Nc6
{[%clk 0:00:22.2]} 57... Bf1 {[%clk 0:00:12.4]} 58. f4 {[%clk 0:00:23]} 58...
gxf4+ {[%clk 0:00:12.9]} 59. Kxf4 {[%clk 0:00:24.2]} 59... Ke6 {[%clk
0:00:13.8]} 60. g5 {[%clk 0:00:23.7]} 60... d5 {[%clk 0:00:14.5]} 61. Nd4+
{[%clk 0:00:23.9]} 61... Kd6 {[%clk 0:00:15.9]} 62. e5+ {[%clk 0:00:20.2]} 62...
Kc5 {[%clk 0:00:17.3]} 63. g6 {[%clk 0:00:21.3]} 63... Bd3 {[%clk 0:00:16.7]}
64. Nf5 {[%clk 0:00:22.3]} 64... d4 {[%clk 0:00:15.3]} 65. e6 {[%clk 0:00:22.6]}
65... Bxf5 {[%clk 0:00:13.2]} 66. Kxf5 {[%clk 0:00:23.2]} 66... d3 {[%clk
0:00:14.7]} 67. e7 {[%clk 0:00:24]} 67... d2 {[%clk 0:00:16.6]} 68. e8=Q {[%clk
0:00:24.8]} 68... d1=Q {[%clk 0:00:18.5]} 69. Qf8+ {[%clk 0:00:24.8]} 69... Kc4
{[%clk 0:00:19.1]} 70. g7 {[%clk 0:00:25.7]} 70... Qf3+ {[%clk 0:00:19.3]} 71.
Kg6 {[%clk 0:00:26.5]} 71... Qg4+ {[%clk 0:00:17.2]} 72. Kh7 {[%clk 0:00:27.6]}
72... Qh5+ {[%clk 0:00:18.4]} 73. Kg8 {[%clk 0:00:28.7]} 73... Kc3 {[%clk
0:00:16]} 74. Qf6+ {[%clk 0:00:26.9]} 74... Kb4 {[%clk 0:00:15.7]} 75. Kf8
{[%clk 0:00:27.4]} 1-0

[Event "*** Titled Tuesday Blitz"]
[Site "Chess.com"]
[Date "2018.12.04"]
[Round "6"]
[White "Chessialist"]
[Black "Yurovskykh_Oleksandr"]
[Result "0-1"]
[WhiteElo "2474"]
[BlackElo "2492"]
[TimeControl "180+2"]
[EndTime "14:24:05 PST"]
[Termination "Yurovskykh_Oleksandr won by resignation"]

1. e4 {[%clk 0:03:01.9]} 1... c6 {[%clk 0:03:00.8]} 2. d4 {[%clk 0:03:02.2]}
2... d5 {[%clk 0:03:02.2]} 3. Nd2 {[%clk 0:03:03.7]} 3... dxe4 {[%clk
0:03:03.3]} 4. Nxe4 {[%clk 0:03:04.4]} 4... Bf5 {[%clk 0:03:04.9]} 5. Ng3 {[%clk
0:03:05.9]} 5... Bg6 {[%clk 0:03:06.3]} 6. h4 {[%clk 0:03:06.9]} 6... h6 {[%clk
0:03:07.4]} 7. Nh3 {[%clk 0:03:07.2]} 7... e6 {[%clk 0:03:06.3]} 8. Nf4 {[%clk
0:03:08.5]} 8... Bh7 {[%clk 0:03:07.8]} 9. Bc4 {[%clk 0:03:10.2]} 9... Nf6
{[%clk 0:03:08.9]} 10. Qe2 {[%clk 0:03:11.2]} 10... Bd6 {[%clk 0:03:09.5]} 11.
Ngh5 {[%clk 0:03:10.1]} 11... Nxh5 {[%clk 0:02:42.6]} 12. Nxh5 {[%clk
0:03:10.8]} 12... O-O {[%clk 0:02:43.5]} 13. Qg4 {[%clk 0:03:02.5]} 13... Bg6
{[%clk 0:02:44.6]} 14. Nxg7 {[%clk 0:02:57.7]} 14... Kxg7 {[%clk 0:02:44.5]} 15.
h5 {[%clk 0:02:58.9]} 15... Qa5+ {[%clk 0:02:42.5]} 16. Bd2 {[%clk 0:02:15.3]}
16... Qf5 {[%clk 0:02:38.6]} 17. Bxh6+ {[%clk 0:02:16.3]} 17... Kh8 {[%clk
0:02:32]} 18. Qe2 {[%clk 0:02:02.6]} 18... Bh7 {[%clk 0:02:20.7]} 19. Bd3 {[%clk
0:02:01.8]} 19... Qa5+ {[%clk 0:02:10.6]} 20. c3 {[%clk 0:01:56.6]} 20... Rg8
{[%clk 0:02:05.1]} 21. g3 {[%clk 0:01:51.9]} 21... Nd7 {[%clk 0:02:03.3]} 22.
Be3 {[%clk 0:01:41.1]} 22... Bxd3 {[%clk 0:01:43.3]} 23. Qxd3 {[%clk 0:01:41.9]}
23... Qf5 {[%clk 0:01:44.8]} 24. Qxf5 {[%clk 0:01:36.7]} 24... exf5 {[%clk
0:01:46.7]} 25. O-O-O {[%clk 0:01:36.2]} 25... Rae8 {[%clk 0:01:43.5]} 26. Rde1
{[%clk 0:01:35.5]} 26... Nf6 {[%clk 0:01:41.1]} 27. Kc2 {[%clk 0:01:11.5]} 27...
Kh7 {[%clk 0:01:36.3]} 28. Kd3 {[%clk 0:01:10.9]} 28... Re6 {[%clk 0:01:33.8]}
29. c4 {[%clk 0:01:06.2]} 29... Rge8 {[%clk 0:01:33.9]} 30. h6 {[%clk 0:01:06]}
30... Ng4 {[%clk 0:01:34.3]} 31. Rh5 {[%clk 0:00:59.6]} 31... Nxe3 {[%clk
0:01:31.2]} 32. fxe3 {[%clk 0:01:00.4]} 32... Bxg3 {[%clk 0:01:31.7]} 33. Re2
{[%clk 0:00:58.1]} 33... f4 {[%clk 0:01:33.1]} 34. e4 {[%clk 0:00:58.9]} 34...
f3 {[%clk 0:01:34.3]} 35. Re3 {[%clk 0:01:00.4]} 35... Rf6 {[%clk 0:01:05.9]}
36. Rh1 {[%clk 0:00:58.9]} 36... Bf2 {[%clk 0:01:02.5]} 37. e5 {[%clk
0:00:46.2]} 37... Bxe3 {[%clk 0:00:52.8]} 38. exf6 {[%clk 0:00:47.1]} 38... Bxh6
{[%clk 0:00:53.8]} 39. d5 {[%clk 0:00:48.5]} 39... c5 {[%clk 0:00:49.4]} 40. Rf1
{[%clk 0:00:44.7]} 40... Re3+ {[%clk 0:00:47]} 41. Kc2 {[%clk 0:00:46]} 41...
Bf4 {[%clk 0:00:44]} 42. a3 {[%clk 0:00:43.7]} 42... Kg6 {[%clk 0:00:44.7]} 43.
b4 {[%clk 0:00:44.4]} 43... cxb4 {[%clk 0:00:45.8]} 44. axb4 {[%clk 0:00:45.4]}
44... Kxf6 {[%clk 0:00:47.4]} 45. c5 {[%clk 0:00:46.8]} 45... Re2+ {[%clk
0:00:45.1]} 46. Kd3 {[%clk 0:00:47.6]} 46... Ke5 {[%clk 0:00:26.9]} 47. Rxf3
{[%clk 0:00:47.5]} 47... Rd2+ {[%clk 0:00:26.2]} 48. Kc3 {[%clk 0:00:48.1]}
48... Rxd5 {[%clk 0:00:26.3]} 49. Rh3 {[%clk 0:00:48.6]} 49... a5 {[%clk
0:00:24.3]} 50. Rh5+ {[%clk 0:00:44.2]} 50... f5 {[%clk 0:00:24.7]} 51. bxa5
{[%clk 0:00:43.3]} 51... Rxc5+ {[%clk 0:00:25.9]} 52. Kb4 {[%clk 0:00:43.9]}
52... Rd5 {[%clk 0:00:27.2]} 53. Rh7 {[%clk 0:00:44.9]} 53... Bd2+ {[%clk
0:00:27.8]} 54. Kc4 {[%clk 0:00:46]} 54... Rxa5 {[%clk 0:00:25.8]} 55. Re7+
{[%clk 0:00:45.7]} 55... Kf4 {[%clk 0:00:25.9]} 56. Rxb7 {[%clk 0:00:47.1]}
56... Re5 {[%clk 0:00:21.5]} 57. Kd3 {[%clk 0:00:48.3]} 57... Be3 {[%clk
0:00:22.3]} 58. Ke2 {[%clk 0:00:45.9]} 58... Bc5+ {[%clk 0:00:22.5]} 59. Kf1
{[%clk 0:00:47.4]} 59... Re4 {[%clk 0:00:23.3]} 60. Rh7 {[%clk 0:00:47.7]} 60...
Re5 {[%clk 0:00:24]} 61. Rh4+ {[%clk 0:00:48.6]} 61... Ke3 {[%clk 0:00:25.1]}
62. Rh3+ {[%clk 0:00:49.8]} 62... Ke4 {[%clk 0:00:25.8]} 63. Rc3 {[%clk
0:00:50]} 63... f4 {[%clk 0:00:26.2]} 64. Rc4+ {[%clk 0:00:50.4]} 64... Ke3
{[%clk 0:00:20.5]} 65. Rc3+ {[%clk 0:00:51.5]} 65... Kd4 {[%clk 0:00:21.5]} 66.
Rc1 {[%clk 0:00:50.9]} 66... f3 {[%clk 0:00:19.8]} 67. Rb1 {[%clk 0:00:39.1]}
67... Rg5 {[%clk 0:00:18.1]} 68. Re1 {[%clk 0:00:12.7]} 68... Kd3 {[%clk
0:00:11]} 69. Rd1+ {[%clk 0:00:13.9]} 69... Ke4 {[%clk 0:00:12]} 0-1